[Event "*** Titled Tuesday Blitz"]
[Site "Chess.com"]
[Date "2020.03.03"]
[Round "3"]
[White "ChessicallyInclined"]
[Black "Azeryahu"]
[Result "0-1"]
[WhiteElo "2483"]
[BlackElo "2809"]
[TimeControl "180+1"]
[EndTime "13:30:15 PST"]
[Termination "Azeryahu won by resignation"]

1. Nf3 {[%clk 0:03:00.9]} 1... g6 {[%clk 0:02:57]} 2. d4 {[%clk 0:02:57.1]} 2...
Nf6 {[%clk 0:02:56.2]} 3. c4 {[%clk 0:02:57]} 3... Bg7 {[%clk 0:02:56.5]} 4. e3
{[%clk 0:02:55.4]} 4... O-O {[%clk 0:02:55.7]} 5. Be2 {[%clk 0:02:56]} 5... c5
{[%clk 0:02:51.5]} 6. d5 {[%clk 0:02:55.5]} 6... e6 {[%clk 0:02:52]} 7. Nc3
{[%clk 0:02:53.6]} 7... exd5 {[%clk 0:02:52.3]} 8. cxd5 {[%clk 0:02:54.5]} 8...
d6 {[%clk 0:02:52.3]} 9. O-O {[%clk 0:02:54.7]} 9... Bg4 {[%clk 0:02:51.9]} 10.
h3 {[%clk 0:02:54.5]} 10... Bxf3 {[%clk 0:02:52.1]} 11. Bxf3 {[%clk 0:02:55.4]}
11... Nbd7 {[%clk 0:02:52]} 12. a4 {[%clk 0:02:55.1]} 12... a6 {[%clk
0:02:45.9]} 13. Bd2 {[%clk 0:02:54.8]} 13... Re8 {[%clk 0:02:45]} 14. Be2 {[%clk
0:02:48]} 14... Rc8 {[%clk 0:02:44]} 15. a5 {[%clk 0:02:43.4]} 15... Ne4 {[%clk
0:02:37.6]} 16. Nxe4 {[%clk 0:02:40.3]} 16... Rxe4 {[%clk 0:02:38.3]} 17. Bf3
{[%clk 0:02:38.7]} 17... Re8 {[%clk 0:02:38.2]} 18. Qc2 {[%clk 0:02:35.7]} 18...
c4 {[%clk 0:02:30.5]} 19. Ra4 {[%clk 0:02:28.4]} 19... Ne5 {[%clk 0:02:15.8]}
20. Be2 {[%clk 0:02:26.8]} 20... Rc5 {[%clk 0:02:15.6]} 21. Bc3 {[%clk
0:02:08.6]} 21... Qc7 {[%clk 0:01:39.8]} 22. Rd1 {[%clk 0:02:00.8]} 22... Rc8
{[%clk 0:01:28.4]} 23. e4 {[%clk 0:01:33.3]} 23... Nd3 {[%clk 0:01:04.5]} 24.
Bxg7 {[%clk 0:01:21.6]} 24... Kxg7 {[%clk 0:01:05.4]} 25. Bxd3 {[%clk
0:01:19.4]} 25... cxd3 {[%clk 0:01:06.3]} 26. Qxd3 {[%clk 0:01:20]} 26... Rxa5
{[%clk 0:01:06.4]} 27. Rxa5 {[%clk 0:01:17.5]} 27... Qxa5 {[%clk 0:01:06.6]} 28.
Qd4+ {[%clk 0:01:17.1]} 28... f6 {[%clk 0:01:06]} 29. Rd3 {[%clk 0:01:03.7]}
29... Rc1+ {[%clk 0:00:59.9]} 30. Kh2 {[%clk 0:01:03.4]} 30... Qc5 {[%clk
0:00:59.9]} 31. Qxc5 {[%clk 0:00:46.4]} 31... Rxc5 {[%clk 0:01:00.8]} 32. Rb3
{[%clk 0:00:45.1]} 32... Rc7 {[%clk 0:00:59.4]} 33. Rb6 {[%clk 0:00:43.2]} 33...
Rd7 {[%clk 0:00:59.9]} 34. Kg3 {[%clk 0:00:37.1]} 34... Kf7 {[%clk 0:01:00.4]}
35. f4 {[%clk 0:00:36.9]} 35... Ke7 {[%clk 0:01:00.7]} 36. Kf3 {[%clk
0:00:23.7]} 36... Kd8 {[%clk 0:01:00.8]} 37. e5 {[%clk 0:00:18.9]} 37... fxe5
{[%clk 0:00:59.7]} 38. fxe5 {[%clk 0:00:19.8]} 38... Kc7 {[%clk 0:00:50.6]} 39.
Rxd6 {[%clk 0:00:16.1]} 39... Rxd6 {[%clk 0:00:50.4]} 40. exd6+ {[%clk 0:00:17]}
40... Kxd6 {[%clk 0:00:51.2]} 41. Ke4 {[%clk 0:00:17.7]} 41... a5 {[%clk
0:00:50.3]} 42. Kd4 {[%clk 0:00:17.6]} 42... b5 {[%clk 0:00:50.3]} 43. h4 {[%clk
0:00:17.3]} 43... h5 {[%clk 0:00:46.7]} 44. Ke4 {[%clk 0:00:15.2]} 44... a4
{[%clk 0:00:47]} 45. Kd4 {[%clk 0:00:15]} 45... b4 {[%clk 0:00:47.4]} 46. Kc4
{[%clk 0:00:14.9]} 46... a3 {[%clk 0:00:47.9]} 47. bxa3 {[%clk 0:00:15.4]} 47...
bxa3 {[%clk 0:00:48.8]} 48. Kb3 {[%clk 0:00:16.3]} 48... Kxd5 {[%clk 0:00:49.3]}
49. Kxa3 {[%clk 0:00:16.8]} 49... Ke4 {[%clk 0:00:50.2]} 50. Kb4 {[%clk
0:00:17.1]} 50... Kf4 {[%clk 0:00:50.7]} 51. Kc4 {[%clk 0:00:17.5]} 51... Kg3
{[%clk 0:00:50.8]} 52. Kd5 {[%clk 0:00:13.1]} 52... Kxg2 {[%clk 0:00:48.4]} 53.
Ke5 {[%clk 0:00:13.5]} 53... Kh3 {[%clk 0:00:49.3]} 54. Kf6 {[%clk 0:00:13.3]}
54... Kxh4 {[%clk 0:00:50.2]} 55. Kxg6 {[%clk 0:00:13.9]} 55... Kg4 {[%clk
0:00:51.1]} 0-1

[Event "*** Titled Tuesday Blitz"]
[Site "Chess.com"]
[Date "2020.03.03"]
[Round "3"]
[White "guillembaches"]
[Black "Witik"]
[Result "0-1"]
[WhiteElo "2414"]
[BlackElo "2644"]
[TimeControl "180+1"]
[EndTime "13:30:15 PST"]
[Termination "Witik won by checkmate"]

1. e4 {[%clk 0:03:00.9]} 1... c6 {[%clk 0:02:56.8]} 2. d4 {[%clk 0:02:58.4]}
2... d6 {[%clk 0:02:56.5]} 3. Be3 {[%clk 0:02:56.4]} 3... h6 {[%clk 0:02:55.7]}
4. f4 {[%clk 0:02:54]} 4... Nd7 {[%clk 0:02:54.4]} 5. Nf3 {[%clk 0:02:52.5]}
5... Qa5+ {[%clk 0:02:39.2]} 6. Nc3 {[%clk 0:02:49]} 6... g5 {[%clk 0:02:38.6]}
7. Bc4 {[%clk 0:02:36.8]} 7... b5 {[%clk 0:02:26.7]} 8. Bb3 {[%clk 0:02:28.6]}
8... Ngf6 {[%clk 0:02:02.1]} 9. e5 {[%clk 0:02:13.4]} 9... Ne4 {[%clk
0:01:59.2]} 10. Qd3 {[%clk 0:02:07.6]} 10... d5 {[%clk 0:01:46.5]} 11. O-O
{[%clk 0:02:02.5]} 11... Nxc3 {[%clk 0:01:35.6]} 12. bxc3 {[%clk 0:01:51.9]}
12... g4 {[%clk 0:01:29.9]} 13. Nh4 {[%clk 0:01:36.9]} 13... Nb6 {[%clk
0:01:17.4]} 14. f5 {[%clk 0:01:32.7]} 14... Ba6 {[%clk 0:01:15.2]} 15. Qd1
{[%clk 0:01:07]} 15... Qxc3 {[%clk 0:01:09]} 16. Bf2 {[%clk 0:01:01.3]} 16... h5
{[%clk 0:00:54.8]} 17. e6 {[%clk 0:01:00.5]} 17... f6 {[%clk 0:00:47.2]} 18. Ng6
{[%clk 0:00:50.6]} 18... Rh7 {[%clk 0:00:42.7]} 19. Nf4 {[%clk 0:00:47.3]} 19...
Bh6 {[%clk 0:00:39.3]} 20. Ne2 {[%clk 0:00:43.3]} 20... Qd2 {[%clk 0:00:36.7]}
21. Ng3 {[%clk 0:00:31.2]} 21... b4 {[%clk 0:00:31.7]} 22. Qxd2 {[%clk
0:00:27.5]} 22... Bxd2 {[%clk 0:00:31.3]} 23. Rfd1 {[%clk 0:00:27.6]} 23... Bc3
{[%clk 0:00:30.8]} 24. Rab1 {[%clk 0:00:27.6]} 24... h4 {[%clk 0:00:30.2]} 25.
Nf1 {[%clk 0:00:24.1]} 25... O-O-O {[%clk 0:00:30]} 26. Ne3 {[%clk 0:00:20.3]}
26... g3 {[%clk 0:00:29.4]} 27. Be1 {[%clk 0:00:17.2]} 27... gxh2+ {[%clk
0:00:21.3]} 28. Kxh2 {[%clk 0:00:16.6]} 28... Rg8 {[%clk 0:00:22]} 29. Bxc3
{[%clk 0:00:16.6]} 29... bxc3 {[%clk 0:00:22]} 30. a4 {[%clk 0:00:16.5]} 30...
Kc7 {[%clk 0:00:20]} 31. a5 {[%clk 0:00:16]} 31... Nc8 {[%clk 0:00:20.4]} 32.
Ba4 {[%clk 0:00:14.1]} 32... Rg3 {[%clk 0:00:17.2]} 33. Re1 {[%clk 0:00:14.2]}
33... Nd6 {[%clk 0:00:17.2]} 34. Rb3 {[%clk 0:00:13.5]} 34... Ne4 {[%clk
0:00:17.3]} 35. Reb1 {[%clk 0:00:12.5]} 35... h3 {[%clk 0:00:17]} 36. Nxd5+
{[%clk 0:00:08.6]} 36... cxd5 {[%clk 0:00:15.5]} 37. Rb8 {[%clk 0:00:08.8]}
37... Rxg2+ {[%clk 0:00:14.2]} 38. Kh1 {[%clk 0:00:08.9]} 38... Nf2# {[%clk
0:00:14.6]} 0-1

[Event "*** Titled Tuesday Blitz"]
[Site "Chess.com"]
[Date "2020.03.03"]
[Round "3"]
[White "GCamachoMartinez"]
[Black "RiskyDecision"]
[Result "0-1"]
[WhiteElo "2389"]
[BlackElo "2631"]
[TimeControl "180+1"]
[EndTime "13:30:20 PST"]
[Termination "RiskyDecision won by resignation"]

1. d4 {[%clk 0:03:00.9]} 1... f5 {[%clk 0:02:59.4]} 2. Nf3 {[%clk 0:02:57.7]}
2... Nf6 {[%clk 0:02:58.1]} 3. g3 {[%clk 0:02:57.2]} 3... g6 {[%clk 0:02:57.8]}
4. Bg2 {[%clk 0:02:56.8]} 4... Bg7 {[%clk 0:02:57.9]} 5. O-O {[%clk 0:02:56.3]}
5... O-O {[%clk 0:02:57.9]} 6. c4 {[%clk 0:02:56.8]} 6... d6 {[%clk 0:02:57.9]}
7. Nc3 {[%clk 0:02:54.4]} 7... c6 {[%clk 0:02:56.2]} 8. Re1 {[%clk 0:02:53.8]}
8... Na6 {[%clk 0:02:50.8]} 9. e4 {[%clk 0:02:49.7]} 9... fxe4 {[%clk
0:02:51.7]} 10. Nxe4 {[%clk 0:02:49.6]} 10... Nxe4 {[%clk 0:02:48.1]} 11. Rxe4
{[%clk 0:02:50.5]} 11... Bf5 {[%clk 0:02:48.5]} 12. Rh4 {[%clk 0:02:45.7]} 12...
e5 {[%clk 0:02:39.3]} 13. dxe5 {[%clk 0:01:51.8]} 13... dxe5 {[%clk 0:02:40.2]}
14. Bg5 {[%clk 0:01:51.9]} 14... Bf6 {[%clk 0:02:15.9]} 15. Qxd8 {[%clk
0:01:46.2]} 15... Raxd8 {[%clk 0:02:16.8]} 16. Bxf6 {[%clk 0:01:46.2]} 16...
Rxf6 {[%clk 0:02:16.6]} 17. Nxe5 {[%clk 0:01:45.7]} 17... Rd2 {[%clk 0:02:14.5]}
18. b3 {[%clk 0:01:42.4]} 18... Nb4 {[%clk 0:02:02.8]} 19. Nf3 {[%clk
0:01:29.3]} 19... Rxa2 {[%clk 0:02:01.1]} 20. Rxa2 {[%clk 0:01:28.6]} 20... Nxa2
{[%clk 0:02:02]} 21. Rd4 {[%clk 0:01:28.4]} 21... Nc1 {[%clk 0:01:57.3]} 22.
Rd8+ {[%clk 0:01:25.2]} 22... Kg7 {[%clk 0:01:56.9]} 23. Bf1 {[%clk 0:01:16]}
23... Nxb3 {[%clk 0:01:52.1]} 24. Ne5 {[%clk 0:01:11.9]} 24... Nc5 {[%clk
0:01:48.9]} 25. f4 {[%clk 0:01:11.4]} 25... a5 {[%clk 0:01:45.3]} 26. Ra8 {[%clk
0:01:10.5]} 26... a4 {[%clk 0:01:45.6]} 27. Ra7 {[%clk 0:01:09.3]} 27... Rd6
{[%clk 0:01:33.8]} 28. Bg2 {[%clk 0:00:58.2]} 28... Rd1+ {[%clk 0:01:26.9]} 29.
Kf2 {[%clk 0:00:58]} 29... Rd2+ {[%clk 0:01:26.8]} 30. Kg1 {[%clk 0:00:57.9]}
30... Kf8 {[%clk 0:01:17]} 31. Ra5 {[%clk 0:00:56.8]} 31... Ne4 {[%clk
0:01:01.5]} 32. Bxe4 {[%clk 0:00:53.2]} 32... Bxe4 {[%clk 0:01:02.4]} 33. Rxa4
{[%clk 0:00:53.2]} 33... Rg2+ {[%clk 0:00:49.1]} 34. Kf1 {[%clk 0:00:53.2]}
34... Rxh2 {[%clk 0:00:48.7]} 35. Ra8+ {[%clk 0:00:52.9]} 35... Ke7 {[%clk
0:00:45]} 36. Ra7 {[%clk 0:00:53]} 36... c5 {[%clk 0:00:44]} 37. Ra5 {[%clk
0:00:47.3]} 37... Kd6 {[%clk 0:00:40.7]} 38. Rb5 {[%clk 0:00:44]} 38... Rc2
{[%clk 0:00:32.3]} 39. Rb6+ {[%clk 0:00:43.3]} 39... Kc7 {[%clk 0:00:31.2]} 40.
Rb5 {[%clk 0:00:43.1]} 40... b6 {[%clk 0:00:31]} 41. Rb3 {[%clk 0:00:40.6]}
41... h6 {[%clk 0:00:27]} 42. Ra3 {[%clk 0:00:40.1]} 42... g5 {[%clk 0:00:26.2]}
43. fxg5 {[%clk 0:00:38.6]} 43... hxg5 {[%clk 0:00:27.1]} 44. Ra7+ {[%clk
0:00:38.6]} 44... Kd6 {[%clk 0:00:26.4]} 45. Rd7+ {[%clk 0:00:37.7]} 45... Kxe5
{[%clk 0:00:25.7]} 46. Re7+ {[%clk 0:00:33.7]} 46... Kd4 {[%clk 0:00:25.6]} 0-1

[Event "*** Titled Tuesday Blitz"]
[Site "Chess.com"]
[Date "2020.03.03"]
[Round "3"]
[White "Sunnika"]
[Black "Snegokhod"]
[Result "1-0"]
[WhiteElo "2397"]
[BlackElo "2601"]
[TimeControl "180+1"]
[EndTime "13:30:22 PST"]
[Termination "Sunnika won on time"]

1. d4 {[%clk 0:03:00.9]} 1... Nf6 {[%clk 0:02:54.8]} 2. Nf3 {[%clk 0:03:01.4]}
2... g6 {[%clk 0:02:53.8]} 3. g3 {[%clk 0:03:00.7]} 3... Bg7 {[%clk 0:02:53.4]}
4. Bg2 {[%clk 0:03:01.2]} 4... O-O {[%clk 0:02:53.8]} 5. O-O {[%clk 0:03:01]}
5... d5 {[%clk 0:02:54.2]} 6. Bf4 {[%clk 0:02:59.7]} 6... c5 {[%clk 0:02:52.7]}
7. dxc5 {[%clk 0:02:59.2]} 7... Na6 {[%clk 0:02:47.9]} 8. c3 {[%clk 0:02:58.4]}
8... Nxc5 {[%clk 0:02:47.8]} 9. Na3 {[%clk 0:02:59]} 9... a6 {[%clk 0:02:38.3]}
10. Nc2 {[%clk 0:02:55.9]} 10... b5 {[%clk 0:02:32.2]} 11. Be5 {[%clk
0:02:49.4]} 11... Bb7 {[%clk 0:02:27.5]} 12. Nb4 {[%clk 0:02:37.1]} 12... Re8
{[%clk 0:02:21.6]} 13. Nd3 {[%clk 0:02:36.8]} 13... Ncd7 {[%clk 0:02:20.1]} 14.
Bd4 {[%clk 0:02:35.2]} 14... Qc7 {[%clk 0:02:15.8]} 15. Nfe5 {[%clk 0:02:34.7]}
15... Bh6 {[%clk 0:01:53.2]} 16. a4 {[%clk 0:02:33.6]} 16... Ne4 {[%clk
0:01:42.3]} 17. Nxd7 {[%clk 0:02:16.2]} 17... Qxd7 {[%clk 0:01:38.4]} 18. axb5
{[%clk 0:02:15.7]} 18... Qxb5 {[%clk 0:01:28.3]} 19. Ra2 {[%clk 0:02:13.1]}
19... f6 {[%clk 0:01:21.8]} 20. Qa4 {[%clk 0:02:03.4]} 20... e5 {[%clk
0:01:19.3]} 21. Bc5 {[%clk 0:01:41.8]} 21... Qxa4 {[%clk 0:01:03.6]} 22. Rxa4
{[%clk 0:01:39.4]} 22... Bc6 {[%clk 0:01:04.1]} 23. Ra5 {[%clk 0:01:37.7]} 23...
Bb5 {[%clk 0:00:59.1]} 24. Bb4 {[%clk 0:01:32.2]} 24... Rad8 {[%clk 0:00:50.3]}
25. Rfa1 {[%clk 0:01:29.7]} 25... Nd2 {[%clk 0:00:47.4]} 26. Nc5 {[%clk
0:01:15.8]} 26... Bxe2 {[%clk 0:00:42.8]} 27. Nb7 {[%clk 0:01:16.2]} 27... e4
{[%clk 0:00:22.4]} 28. Nxd8 {[%clk 0:01:12.9]} 28... Rxd8 {[%clk 0:00:23]} 29.
Be7 {[%clk 0:01:05.9]} 29... Rd7 {[%clk 0:00:21]} 30. Bxf6 {[%clk 0:01:04.8]}
30... Nf3+ {[%clk 0:00:19.5]} 31. Kh1 {[%clk 0:01:04]} 31... Kf7 {[%clk
0:00:14.7]} 32. Bd4 {[%clk 0:01:00]} 32... Nxd4 {[%clk 0:00:14]} 33. cxd4 {[%clk
0:01:00.9]} 33... Bg7 {[%clk 0:00:14.4]} 34. Re1 {[%clk 0:00:40.5]} 34... Bc4
{[%clk 0:00:12.4]} 35. Rd1 {[%clk 0:00:35.5]} 35... Rb7 {[%clk 0:00:11.9]} 36.
Bf1 {[%clk 0:00:34]} 36... Bxf1 {[%clk 0:00:06.8]} 37. Rxf1 {[%clk 0:00:33.1]}
37... Rxb2 {[%clk 0:00:07.3]} 38. Rxd5 {[%clk 0:00:31.9]} 38... Rd2 {[%clk
0:00:07.3]} 39. Rd7+ {[%clk 0:00:31.1]} 39... Kg8 {[%clk 0:00:05.2]} 40. Rb1
{[%clk 0:00:29.9]} 40... Rxf2 {[%clk 0:00:02.1]} 41. Rb8+ {[%clk 0:00:28.9]}
41... Rf8 {[%clk 0:00:01.9]} 42. Rxf8+ {[%clk 0:00:27.7]} 42... Bxf8 {[%clk
0:00:01]} 43. Kg1 {[%clk 0:00:26.9]} 1-0

[Event "*** Titled Tuesday Blitz"]
[Site "Chess.com"]
[Date "2020.03.03"]
[Round "3"]
[White "PawnEatingZombie"]
[Black "matiss90"]
[Result "1/2-1/2"]
[WhiteElo "2220"]
[BlackElo "2477"]
[TimeControl "180+1"]
[EndTime "13:30:27 PST"]
[Termination "Game drawn by repetition"]

1. d4 {[%clk 0:03:00.9]} 1... Nf6 {[%clk 0:02:59.8]} 2. c4 {[%clk 0:03:01]} 2...
e5 {[%clk 0:02:54.6]} 3. dxe5 {[%clk 0:03:00.2]} 3... Ng4 {[%clk 0:02:54.5]} 4.
Bf4 {[%clk 0:02:59.7]} 4... Nc6 {[%clk 0:02:53.8]} 5. Nf3 {[%clk 0:02:59.6]}
5... Qe7 {[%clk 0:02:53.9]} 6. Nc3 {[%clk 0:02:47.5]} 6... Ncxe5 {[%clk
0:02:30.2]} 7. Nxe5 {[%clk 0:02:48.4]} 7... Nxe5 {[%clk 0:02:28.6]} 8. e3 {[%clk
0:02:30.5]} 8... c6 {[%clk 0:02:26.4]} 9. Be2 {[%clk 0:02:29.2]} 9... g6 {[%clk
0:02:26.2]} 10. O-O {[%clk 0:02:28.3]} 10... Bg7 {[%clk 0:02:26.1]} 11. Qd2
{[%clk 0:02:25.3]} 11... O-O {[%clk 0:02:25.8]} 12. Rfd1 {[%clk 0:02:22.6]}
12... b6 {[%clk 0:02:15.5]} 13. Rac1 {[%clk 0:02:21.3]} 13... a5 {[%clk
0:02:10.1]} 14. b3 {[%clk 0:02:20.9]} 14... Rd8 {[%clk 0:02:00.8]} 15. h3 {[%clk
0:01:50.1]} 15... d6 {[%clk 0:02:00.5]} 16. Bg3 {[%clk 0:01:43.8]} 16... Bb7
{[%clk 0:01:51]} 17. f4 {[%clk 0:01:39.4]} 17... Nd7 {[%clk 0:01:50.8]} 18. Bf3
{[%clk 0:01:35]} 18... Nc5 {[%clk 0:01:48.2]} 19. Re1 {[%clk 0:01:12.6]} 19...
Rd7 {[%clk 0:01:16.3]} 20. e4 {[%clk 0:01:10.4]} 20... Re8 {[%clk 0:01:07.3]}
21. Rcd1 {[%clk 0:01:10]} 21... h5 {[%clk 0:01:02]} 22. Qc2 {[%clk 0:01:04.5]}
22... Rdd8 {[%clk 0:01:00.3]} 23. Bf2 {[%clk 0:01:00.1]} 23... h4 {[%clk
0:00:59.6]} 24. e5 {[%clk 0:00:33.5]} 24... dxe5 {[%clk 0:00:57.7]} 25. Rxd8
{[%clk 0:00:33.3]} 25... Qxd8 {[%clk 0:00:55.9]} 26. fxe5 {[%clk 0:00:31.5]}
26... Bxe5 {[%clk 0:00:55.6]} 27. Ne4 {[%clk 0:00:15.2]} 27... Bd4 {[%clk
0:00:51.2]} 28. Kh1 {[%clk 0:00:09.7]} 28... Nxe4 {[%clk 0:00:46.8]} 29. Bxe4
{[%clk 0:00:08.3]} 29... Bxf2 {[%clk 0:00:45.7]} 30. Qxf2 {[%clk 0:00:08.3]}
30... Qe7 {[%clk 0:00:34.7]} 31. Re2 {[%clk 0:00:04.6]} 31... c5 {[%clk
0:00:32.7]} 32. Bf3 {[%clk 0:00:03.3]} 32... Qd7 {[%clk 0:00:15]} 33. Rxe8+
{[%clk 0:00:03.1]} 33... Qxe8 {[%clk 0:00:15.9]} 34. Bxb7 {[%clk 0:00:03.3]}
34... Qe7 {[%clk 0:00:14.8]} 35. Bf3 {[%clk 0:00:03.9]} 35... Qg5 {[%clk
0:00:14.4]} 36. Qe2 {[%clk 0:00:03.4]} 36... Qc1+ {[%clk 0:00:14.2]} 37. Kh2
{[%clk 0:00:03.8]} 37... Qf4+ {[%clk 0:00:14]} 38. Kh1 {[%clk 0:00:04.1]} 38...
Qc1+ {[%clk 0:00:14.1]} 39. Kh2 {[%clk 0:00:04.5]} 39... Qf4+ {[%clk 0:00:14.1]}
40. Kg1 {[%clk 0:00:05]} 40... Qc1+ {[%clk 0:00:14.1]} 41. Qf1 {[%clk
0:00:05.6]} 41... Qe3+ {[%clk 0:00:13.9]} 42. Kh1 {[%clk 0:00:05.9]} 42... Qd2
{[%clk 0:00:13.5]} 43. Qe2 {[%clk 0:00:04.9]} 43... Qc1+ {[%clk 0:00:13.4]}
1/2-1/2

[Event "*** Titled Tuesday Blitz"]
[Site "Chess.com"]
[Date "2020.03.03"]
[Round "3"]
[White "FrenchMonster2002"]
[Black "NikolaGry"]
[Result "0-1"]
[WhiteElo "2415"]
[BlackElo "2648"]
[TimeControl "180+1"]
[EndTime "13:30:28 PST"]
[Termination "NikolaGry won on time"]

1. e4 {[%clk 0:03:00.9]} 1... d5 {[%clk 0:02:58.7]} 2. exd5 {[%clk 0:03:00.7]}
2... Nf6 {[%clk 0:02:58.8]} 3. Nf3 {[%clk 0:03:00.9]} 3... Nxd5 {[%clk
0:02:58.6]} 4. d4 {[%clk 0:03:00.1]} 4... g6 {[%clk 0:02:58.1]} 5. Be2 {[%clk
0:02:57.8]} 5... Bg7 {[%clk 0:02:57.5]} 6. O-O {[%clk 0:02:57.8]} 6... O-O
{[%clk 0:02:57.4]} 7. c4 {[%clk 0:02:57.4]} 7... Nb6 {[%clk 0:02:56.9]} 8. Nc3
{[%clk 0:02:56.1]} 8... Nc6 {[%clk 0:02:45.1]} 9. Be3 {[%clk 0:02:55]} 9... e5
{[%clk 0:02:22.3]} 10. d5 {[%clk 0:02:42.4]} 10... Ne7 {[%clk 0:02:21.6]} 11. a4
{[%clk 0:02:30.5]} 11... Nf5 {[%clk 0:02:20.2]} 12. c5 {[%clk 0:02:22.4]} 12...
Nxe3 {[%clk 0:02:13.8]} 13. fxe3 {[%clk 0:02:23.3]} 13... Nd7 {[%clk 0:02:13.7]}
14. b4 {[%clk 0:02:20]} 14... a5 {[%clk 0:02:12.7]} 15. c6 {[%clk 0:02:05.2]}
15... Nb6 {[%clk 0:02:02.4]} 16. b5 {[%clk 0:01:51.4]} 16... e4 {[%clk
0:01:53.1]} 17. Nxe4 {[%clk 0:01:51.6]} 17... Qxd5 {[%clk 0:01:41.5]} 18. Nfg5
{[%clk 0:01:12.5]} 18... bxc6 {[%clk 0:01:33.1]} 19. bxc6 {[%clk 0:01:07.7]}
19... Bf5 {[%clk 0:01:27.2]} 20. Qxd5 {[%clk 0:00:57.9]} 20... Nxd5 {[%clk
0:01:25.2]} 21. Ra3 {[%clk 0:00:46.9]} 21... Rfe8 {[%clk 0:01:18.5]} 22. Bc4
{[%clk 0:00:34.8]} 22... Rad8 {[%clk 0:01:10.2]} 23. Rd3 {[%clk 0:00:30.7]}
23... h6 {[%clk 0:00:45.5]} 24. Rxd5 {[%clk 0:00:17.5]} 24... Rxd5 {[%clk
0:00:40.5]} 25. Bxd5 {[%clk 0:00:17.4]} 25... hxg5 {[%clk 0:00:39.2]} 26. Nxg5
{[%clk 0:00:14.9]} 26... Rxe3 {[%clk 0:00:38.7]} 27. Bxf7+ {[%clk 0:00:07]}
27... Kh8 {[%clk 0:00:37.8]} 28. h3 {[%clk 0:00:03.1]} 28... Bd4 {[%clk
0:00:36.5]} 29. Kh1 {[%clk 0:00:03.5]} 29... Kg7 {[%clk 0:00:33.1]} 30. Bd5
{[%clk 0:00:01.9]} 30... Bf6 {[%clk 0:00:31.3]} 31. Nf3 {[%clk 0:00:01.8]} 31...
Ra3 {[%clk 0:00:29.5]} 32. Re1 {[%clk 0:00:01.3]} 32... Rxa4 {[%clk 0:00:28.4]}
33. Re8 {[%clk 0:00:01.6]} 33... Ra1+ {[%clk 0:00:22]} 34. Kh2 {[%clk
0:00:01.5]} 34... Rd1 {[%clk 0:00:22.5]} 35. Bc4 {[%clk 0:00:01.3]} 35... Rc1
{[%clk 0:00:21.5]} 36. Bb3 {[%clk 0:00:01.3]} 36... Rc3 {[%clk 0:00:21]} 0-1

[Event "*** Titled Tuesday Blitz"]
[Site "Chess.com"]
[Date "2020.03.03"]
[Round "3"]
[White "SloLev"]
[Black "jefferyx"]
[Result "0-1"]
[WhiteElo "2521"]
[BlackElo "2939"]
[TimeControl "180+1"]
[EndTime "13:30:33 PST"]
[Termination "jefferyx won by resignation"]

1. e4 {[%clk 0:02:58.3]} 1... e6 {[%clk 0:02:57.4]} 2. d4 {[%clk 0:02:56.5]}
2... d5 {[%clk 0:02:58.3]} 3. exd5 {[%clk 0:02:57.1]} 3... exd5 {[%clk
0:02:59.2]} 4. c4 {[%clk 0:02:57.5]} 4... Be6 {[%clk 0:02:54.2]} 5. Nc3 {[%clk
0:02:54.7]} 5... Nf6 {[%clk 0:02:52.4]} 6. Bg5 {[%clk 0:02:54.1]} 6... Be7
{[%clk 0:02:46.3]} 7. Nf3 {[%clk 0:02:53.3]} 7... O-O {[%clk 0:02:45.9]} 8. c5
{[%clk 0:02:52.1]} 8... Nc6 {[%clk 0:02:44.5]} 9. Bb5 {[%clk 0:02:48.4]} 9...
Bg4 {[%clk 0:02:41.5]} 10. Bxc6 {[%clk 0:02:37.3]} 10... bxc6 {[%clk 0:02:42.4]}
11. h3 {[%clk 0:02:37.8]} 11... Bh5 {[%clk 0:02:40.2]} 12. O-O {[%clk
0:02:32.7]} 12... Rb8 {[%clk 0:02:38.7]} 13. b3 {[%clk 0:02:30.6]} 13... h6
{[%clk 0:02:33.4]} 14. Bh4 {[%clk 0:02:29]} 14... Ne4 {[%clk 0:02:28.7]} 15.
Bxe7 {[%clk 0:02:16.1]} 15... Qxe7 {[%clk 0:02:29.6]} 16. Qd3 {[%clk 0:02:11]}
16... Bxf3 {[%clk 0:02:27]} 17. Qxf3 {[%clk 0:02:02.5]} 17... Nd2 {[%clk
0:02:26.4]} 18. Qe3 {[%clk 0:02:02.3]} 18... Qxe3 {[%clk 0:02:25.3]} 19. fxe3
{[%clk 0:02:03.2]} 19... Nxf1 {[%clk 0:02:25.6]} 20. Rxf1 {[%clk 0:02:02.8]}
20... f5 {[%clk 0:02:25.1]} 21. Kf2 {[%clk 0:02:00.3]} 21... Rbe8 {[%clk
0:02:20.5]} 22. g3 {[%clk 0:01:57.7]} 22... g5 {[%clk 0:02:19.9]} 23. Ne2 {[%clk
0:01:57.1]} 23... Kg7 {[%clk 0:02:15.1]} 24. b4 {[%clk 0:01:49.5]} 24... Re6
{[%clk 0:02:13.9]} 25. Rb1 {[%clk 0:01:48.6]} 25... a5 {[%clk 0:01:53.1]} 26.
bxa5 {[%clk 0:01:41.8]} 26... Ra8 {[%clk 0:01:53.5]} 27. Rb7 {[%clk 0:01:40.3]}
27... Re7 {[%clk 0:01:41.5]} 28. Nc3 {[%clk 0:01:39.5]} 28... Rxa5 {[%clk
0:01:41.4]} 29. a4 {[%clk 0:01:39.8]} 29... Kf6 {[%clk 0:01:36.6]} 30. Rb8
{[%clk 0:01:39.5]} 30... Kf7 {[%clk 0:01:31]} 31. Rh8 {[%clk 0:01:39.1]} 31...
Kg7 {[%clk 0:01:26]} 32. Rb8 {[%clk 0:01:34.7]} 32... Ra7 {[%clk 0:01:26.5]} 33.
Rb4 {[%clk 0:01:18.2]} 33... Re8 {[%clk 0:01:25.2]} 34. Kf3 {[%clk 0:01:11.4]}
34... Kf6 {[%clk 0:01:25.2]} 35. Ne2 {[%clk 0:00:52.4]} 35... Rea8 {[%clk
0:01:24.6]} 36. Nc3 {[%clk 0:00:52.3]} 36... Ke6 {[%clk 0:01:25.1]} 37. Ke2
{[%clk 0:00:50.7]} 37... Kd7 {[%clk 0:01:16.8]} 38. Kd3 {[%clk 0:00:51.1]} 38...
Rf8 {[%clk 0:01:16.6]} 39. Rb2 {[%clk 0:00:49.3]} 39... Raa8 {[%clk 0:01:17.1]}
40. Rf2 {[%clk 0:00:48.2]} 40... Ke6 {[%clk 0:01:16.6]} 41. Rf1 {[%clk 0:00:47]}
41... Rfb8 {[%clk 0:01:16.2]} 42. g4 {[%clk 0:00:44.3]} 42... Rf8 {[%clk
0:01:16.4]} 43. gxf5+ {[%clk 0:00:39.5]} 43... Rxf5 {[%clk 0:01:17.3]} 44. Rg1
{[%clk 0:00:39.9]} 44... Rf3 {[%clk 0:01:15]} 45. h4 {[%clk 0:00:38.4]} 45...
Kf5 {[%clk 0:01:15.5]} 46. hxg5 {[%clk 0:00:35.4]} 46... hxg5 {[%clk 0:01:16.4]}
47. Ke2 {[%clk 0:00:35.1]} 47... g4 {[%clk 0:01:13.9]} 48. Rh1 {[%clk
0:00:31.4]} 48... Kg6 {[%clk 0:00:59.2]} 49. Rh2 {[%clk 0:00:18.7]} 49... Rb8
{[%clk 0:00:44]} 50. Kd3 {[%clk 0:00:14.6]} 50... g3 {[%clk 0:00:41.9]} 51. Rg2
{[%clk 0:00:14.1]} 51... Kf5 {[%clk 0:00:41.6]} 52. a5 {[%clk 0:00:14]} 52...
Kg4 {[%clk 0:00:41.4]} 53. a6 {[%clk 0:00:08.9]} 53... Ra8 {[%clk 0:00:41.4]}
54. Nb1 {[%clk 0:00:05]} 54... Rxa6 {[%clk 0:00:38.3]} 55. Nd2 {[%clk
0:00:05.2]} 55... Ra3+ {[%clk 0:00:38.5]} 56. Ke2 {[%clk 0:00:05.5]} 56...
Rfxe3+ {[%clk 0:00:37.1]} 57. Kd1 {[%clk 0:00:03.8]} 57... Kh3 {[%clk
0:00:37.5]} 0-1